bitfinex/quotes_ETHUSD_20220123
["timestamp","ask_amount","ask_price","bid_price","bid_amount"]
[1642968761480,0.03268937,2406.5,2406.4,8.64330844]
[1642968761679,8.937e-05,2406.5,2406.4,8.64460471]
[1642968761923,0.04,2406.8,2406.5,7.65]
[1642968762122,0.04,2406.8,2406.6,1.0]
[1642968762328,0.04,2406.8,2406.6,1.1661]
[1642968762526,0.04,2408.0,2407.1,0.81281743]
[1642968762730,0.04269843,2408.0,2407.1,0.8901]
[1642968762926,0.04269843,2408.0,2407.2,1.10788756]
[1642968763125,0.04,2408.0,2407.2,1.10788756]
[1642968764631,0.04,2408.0,2407.2,2.09538756]
[1642968764836,0.04,2408.0,2407.3,7.65]
[1642968765431,0.04,2408.2,2407.4,7.8583]
[1642968765687,0.04,2408.2,2407.8,1.45228188]
[1642968765884,0.04,2408.2,2407.8,2.9467426]
[1642968766081,0.04,2408.2,2407.8,1.4836]
[1642968766282,0.04,2408.2,2407.8,1.2029]
[1642968767279,0.04,2408.2,2407.7,0.01290883]
[1642968767688,0.04,2408.2,2408.1,8.63845777]
[1642968767888,0.04,2408.2,2408.1,9.77375777]
[1642968768080,0.04,2408.2,2408.1,9.98205777]
[1642968768288,6.97028306,2409.4,2408.1,2.53205777]
[1642968768485,6.97028306,2409.4,2408.1,2.54473774]
[1642968768686,1.37595321,2409.2,2408.1,1.14797997]
[1642968768889,0.49325433,2408.0,2407.5,12.3723]
[1642968769088,0.49325433,2408.0,2407.1,0.2083]
[1642968769716,0.49325433,2408.0,2407.4,1.39912974]
[1642968770518,0.49325433,2408.0,2407.4,2.90262974]
[1642968770718,0.49325433,2408.0,2407.8,0.78218894]
[1642968770921,0.49325433,2408.0,2407.7,0.2083]
[1642968771124,0.49325433,2408.0,2407.8,1.52707387]
[1642968771324,0.49325433,2408.0,2407.7,0.2083]
[1642968771528,0.49325433,2408.0,2407.2,0.01211968]
[1642968771724,0.49325433,2408.0,2406.9,0.1661]
[1642968771925,0.49325433,2408.0,2406.8,0.00129604]
[1642968771926,0.1157,2407.9,2406.8,0.00129604]
[1642968772329,0.1157,2407.9,2406.9,1.40889475]
[1642968772732,0.1157,2407.9,2407.0,0.93506874]
[1642968772929,0.49325433,2408.0,2407.2,0.01226628]
[1642968773179,0.49325433,2408.0,2407.3,0.3744]
[1642968773379,0.49325433,2408.0,2407.7,0.01285315]
[1642968773581,0.49325433,2408.0,2407.9,7.8583]
[1642968773780,0.00269938,2409.1,2408.0,6.4]
[1642968773979,0.00269938,2409.1,2407.9,0.9744]
[1642968773980,0.00269938,2409.1,2408.1,0.166]
[1642968774283,0.1164,2409.0,2407.9,0.01217516]
[1642968774479,0.1164,2409.0,2407.6,0.166]
[1642968774682,1.42031525,2409.1,2408.0,1.41951543]
[1642968774883,0.115,2409.0,2408.0,1.41951543]
[1642968775078,0.1143,2409.2,2408.0,1.43167172]
[1642968775282,0.1143,2409.2,2408.1,0.81029702]
[1642968775485,0.1136,2409.4,2408.2,0.2083]
[1642968775685,0.1136,2409.4,2408.5,0.78824629]
[1642968775880,0.1129,2409.6,2408.8,1.31192029]
[1642968776083,0.59604695,2408.7,2408.2,0.2083]
[1642968776279,0.59604695,2408.7,2408.6,3.31287622]
[1642968776482,0.59604695,2408.7,2408.2,0.2083]
[1642968776680,0.59604695,2408.7,2407.9,0.01210056]
[1642968776938,0.59604695,2408.7,2407.7,1.10175985]
[1642968777139,0.1123,2408.6,2407.7,1.10175985]
[1642968778637,0.11494765,2408.6,2407.7,1.10175985]
[1642968780242,0.00264765,2408.6,2407.7,1.10175985]
[1642968780448,2.50002911,2408.6,2407.3,0.1788036]
[1642968780690,0.501,2408.5,2407.3,0.1788036]
[1642968780892,0.501,2408.5,2407.3,0.0127036]
[1642968780893,2.49372323,2408.4,2407.3,0.0127036]
[1642968781093,0.1156,2408.3,2407.3,0.0127036]
[1642968781495,0.1156,2408.4,2407.4,1.20175978]
[1642968782099,0.1156,2408.4,2407.4,2.38805978]
[1642968782297,0.00264765,2408.6,2407.9,0.01281396]
[1642968782500,0.00264765,2408.6,2408.2,0.69589312]
[1642968782895,0.00264765,2408.6,2408.3,1.42370643]
[1642968783105,0.05269937,2409.7,2408.3,1.42370643]
[1642968783106,0.1159,2409.5,2408.5,7.8583]
[1642968783297,0.16859937,2409.7,2408.5,9.0635]
[1642968783502,0.16589999,2409.7,2408.5,9.0635]
[1642968783696,0.04999999,2409.7,2408.5,9.0635]
[1642968783897,0.1159,2410.1,2408.6,1.3]
[1642968784101,0.1159,2410.1,2409.6,1.346561]
[1642968784322,0.00269938,2410.4,2409.6,2.226761]
[1642968784525,0.11799938,2410.4,2409.6,2.226761]
[1642968784720,0.1153,2410.4,2409.6,2.226761]
[1642968784921,0.1153,2410.4,2409.5,0.81329526]
[1642968785120,0.1153,2410.4,2409.1,0.1658]
[1642968785521,2.2736629,2410.4,2409.1,0.1658]
[1642968785921,3.66987793,2410.4,2409.2,1.34932034]
[1642968786121,2.2736629,2410.4,2409.2,1.34932034]
[1642968786323,0.1153,2410.4,2409.2,1.34932034]
[1642968788177,0.04,2410.7,2409.2,4.32358324]
[1642968788378,0.04,2410.7,2409.6,0.01259423]
[1642968789571,0.04,2410.7,2409.0,2.3666629]
[1642968789773,0.04,2410.7,2409.0,0.01243525]
[1642968789974,0.04,2410.7,2408.7,0.22639994]
[1642968789975,0.58785181,2410.6,2408.7,0.22639994]
[1642968790173,1.45753688,2409.8,2408.7,1.36928464]
[1642968790373,3.21417137,2409.7,2408.7,0.22639994]
[1642968790575,0.555648,2409.7,2408.7,0.22639994]
[1642968790773,0.036574,2409.6,2408.8,0.889464]
[1642968790979,0.04335028,2410.2,2408.8,0.889464]
[1642968791272,3.0165023,2410.3,2408.8,0.889464]
[1642968791672,3.0165023,2410.3,2409.5,1.1145353]
[1642968791936,3.0165023,2410.3,2408.7,0.23881418]
[1642968791937,0.501,2410.3,2408.7,0.23881418]
[1642968792131,0.501,2410.3,2408.7,0.18881418]
[1642968792531,0.801,2410.3,2408.7,0.17639994]
[1642968792732,0.04036371,2410.2,2408.7,0.17639994]
[1642968792934,0.501,2410.1,2408.7,0.17639994]
[1642968793134,1.10801915,2409.6,2408.7,0.17639994]
[1642968793335,0.501,2409.5,2408.0,0.01251113]
[1642968793540,0.501,2409.5,2407.5,13.7037]
[1642968793541,0.501,2409.5,2407.5,13.8697]
[1642968793738,0.501,2409.5,2407.5,13.71580741]
[1642968794134,0.508,2409.5,2407.5,13.50750741]
[1642968794337,1.22178681,2408.9,2407.7,1.28041769]
[1642968794536,0.501,2408.8,2407.5,0.01340311]
[1642968794734,0.57544769,2408.8,2407.5,0.01340311]
[1642968794935,0.53768367,2408.8,2407.5,0.01340311]
[1642968795233,0.007,2409.5,2408.1,0.01227663]
[1642968795440,0.3,2408.8,2407.5,0.0012957]
[1642968795670,0.601,2408.7,2407.5,0.0012957]
[1642968795871,0.501,2408.6,2407.5,0.0012957]
[1642968796076,1.5186,2408.6,2407.5,0.0012957]
[1642968796271,1.21801093,2408.1,2407.5,0.0012957]
[1642968796472,0.501,2408.0,2407.5,0.0012957]
[1642968796672,0.0381608,2407.9,2407.5,0.0012957]
[1642968796873,0.501,2407.8,2407.5,0.0012957]
[1642968797077,0.501,2407.7,2407.5,0.0012957]
[1642968797276,7.56420349,2407.6,2407.5,0.0012957]
[1642968797487,8.49580349,2407.6,2407.5,0.0012957]
[1642968798278,8.49580349,2407.6,2406.3,7.44274243]
[1642968798279,7.65,2407.5,2406.7,7.43]
[1642968798482,7.65,2407.5,2406.7,0.00129569]
[1642968798483,3.385399,2407.4,2406.7,0.00129569]
[1642968799725,0.501,2407.4,2406.7,0.00129569]
[1642968799927,3.08054,2407.3,2406.7,0.00129569]
[1642968800128,1.501,2407.2,2406.7,0.00129569]
[1642968800328,1.801,2407.2,2406.7,0.00129569]
[1642968801127,2.84119,2407.2,2406.7,0.00129569]
[1642968801527,1.84119,2407.2,2406.7,0.00129569]
[1642968801727,1.0,2407.1,2406.7,0.00129569]
[1642968801928,0.501,2407.0,2406.7,0.00129569]
[1642968802129,0.501,2406.9,2406.7,0.00129569]
[1642968802333,3.201,2406.8,2406.7,0.00129569]
[1642968802930,0.501,2406.8,2406.7,0.00129569]
[1642968803180,0.501,2406.8,2406.1,1.24984155]
[1642968803580,0.501,2407.2,2406.1,1.24984155]
[1642968803779,0.501,2407.2,2406.3,0.01279197]
[1642968803988,0.501,2407.2,2406.5,2.04160429]
[1642968804379,0.501,2407.2,2406.5,1.25716893]
[1642968805781,0.501,2407.2,2406.5,1.95168743]
[1642968805982,0.501,2407.6,2406.5,1.95168743]
[1642968807420,0.501,2407.6,2406.9,2.14048884]
[1642968807729,0.501,2408.3,2406.9,1.74984222]
[1642968807923,0.501,2408.6,2406.9,2.71094222]
[1642968808126,0.1,2408.7,2407.0,0.1661]
[1642968808429,1.47582058,2408.6,2407.4,1.42776606]
[1642968808627,2.53531128,2408.5,2407.4,1.42776606]
[1642968808930,0.501,2408.4,2406.9,0.1789041]
[1642968809131,0.501,2408.4,2406.5,4.6289]
[1642968809132,3.22226838,2408.3,2406.5,4.6289]
[1642968809327,3.22226838,2408.3,2406.3,0.17866452]
[1642968809328,1.501,2408.2,2406.3,0.17866452]
[1642968809528,4.04881625,2408.1,2406.3,0.01256452]
[1642968809727,4.04881625,2408.1,2406.3,1.2512851]
[1642968809728,1.39262695,2407.5,2406.3,1.2512851]
[1642968809926,2.95902065,2407.4,2406.3,1.2512851]
[1642968810131,2.95598721,2407.4,2406.3,1.2512851]
[1642968810326,2.95598721,2407.4,2406.3,0.01256452]
[1642968810977,2.95598721,2407.4,2406.0,27.0]
[1642968810978,4.03568721,2407.4,2406.0,27.0]
[1642968811179,1.0519589,2407.3,2406.0,27.0]
[1642968811381,1.29497992,2407.0,2406.0,27.0]
[1642968811581,3.09951886,2406.9,2406.0,27.0]
[1642968811789,4.17241886,2406.9,2406.0,27.0]
[1642968811981,0.04374542,2406.8,2406.0,27.0]
[1642968812182,1.12723181,2406.8,2406.0,27.0]
[1642968812380,0.501,2406.7,2406.0,27.0]
[1642968812581,0.801,2406.7,2406.0,27.0]
[1642968812785,1.11996609,2406.5,2406.0,27.0]
[1642968812982,0.501,2406.4,2406.0,27.0]
[1642968816026,0.501,2406.8,2406.0,27.0]
[1642968816832,1.96815741,2406.8,2406.0,27.0]
[1642968817236,0.501,2406.8,2406.0,27.0]
[1642968818284,1.53446097,2406.7,2406.0,27.0]
[1642968818486,0.501,2406.6,2406.0,27.0]
[1642968818683,0.501,2406.5,2406.0,27.0]
[1642968818884,0.501,2406.4,2406.0,27.0]
[1642968822339,1.36722968,2406.3,2404.9,0.1661]
[1642968822532,1.252,2405.8,2404.1,0.01237771]
[1642968822730,1.252,2405.6,2404.1,0.01237771]
[1642968822933,0.54400769,2405.7,2404.1,0.01237771]
[1642968822934,1.753,2405.5,2404.1,0.05057768]
[1642968823128,1.252,2405.5,2405.1,0.80780842]
[1642968823332,9.43559849,2405.9,2405.2,7.6]
[1642968823532,0.501,2406.9,2406.2,0.70694557]
[1642968823732,0.1,2407.4,2406.2,0.70694557]
[1642968823733,0.1,2407.4,2406.6,0.01251251]
[1642968824133,0.501,2407.3,2406.1,0.17639994]
[1642968824334,1.0401555,2407.1,2406.1,0.17639994]
[1642968824533,0.501,2407.0,2406.1,0.17639994]
[1642968824939,0.501,2407.0,2405.8,0.01265402]
[1642968825134,0.501,2407.0,2404.6,0.2083]
[1642968825336,0.501,2407.0,2405.0,2.16388353]
[1642968825337,0.801,2407.0,2405.0,2.16388353]
[1642968825626,0.801,2407.0,2405.2,1.34181879]
[1642968826023,0.801,2407.0,2405.3,0.77000831]
[1642968826230,1.84132,2407.0,2405.5,0.01250142]
[1642968826427,0.801,2407.0,2405.5,0.01250142]
[1642968826630,0.801,2407.0,2405.6,1.26347383]
[1642968826826,0.3,2406.8,2405.6,1.26347383]
[1642968827025,0.801,2407.0,2405.5,0.01250142]
[1642968827026,0.501,2406.7,2405.5,0.01250142]
[1642968827228,0.501,2406.6,2405.5,0.01250142]
[1642968827429,1.0403678,2406.5,2405.5,0.01250142]
[1642968829549,1.040176,2406.9,2405.5,0.01250142]
[1642968829749,5.51890872,2407.4,2405.5,0.01250142]
[1642968829750,3.2209403,2407.4,2406.1,0.01249211]
[1642968829951,0.1,2407.4,2406.1,0.98759211]
[1642968830155,0.1,2407.4,2406.1,1.45369211]
[1642968830348,0.1,2407.4,2406.9,0.88532399]
[1642968830547,0.1,2407.4,2406.2,0.2083]
[1642968830548,2.0796821,2408.0,2407.1,1.31459376]
[1642968830750,1.0397213,2408.0,2407.1,1.31459376]
[1642968831046,1.05252956,2408.5,2407.1,1.31459376]
[1642968831047,3.13174316,2408.5,2407.1,1.31459376]
[1642968831248,2.0792136,2408.5,2407.1,1.31459376]
[1642968831648,1.0395371,2408.4,2407.7,1.28380635]
[1642968831848,0.541,2408.8,2407.7,1.28380635]
[1642968832247,0.541,2408.8,2407.3,0.13819997]
[1642968832248,0.541,2408.8,2407.5,0.7662]
[1642968832850,2.0789602,2408.7,2407.5,0.7662]
[1642968833088,1.0393602,2408.7,2407.5,1.0662]
[1642968833292,0.04,2408.8,2408.3,1.46375541]
[1642968833493,0.04,2408.8,2408.3,2.37955541]
[1642968833893,0.04,2408.8,2408.3,0.9158]
[1642968834891,0.04,2408.8,2407.7,0.87325984]
[1642968835092,0.04,2408.8,2408.3,1.47769725]
[1642968837329,0.04,2408.8,2408.7,5.11179357]
[1642968837529,0.04,2408.8,2408.7,3.4166924]
[1642968838731,0.04,2408.8,2408.7,4.81140108]
[1642968839934,0.04,2408.8,2408.7,1.39470868]
[1642968840138,0.04,2408.8,2407.9,3.9715]
[1642968840346,0.05602676,2408.7,2407.6,1.3558]
[1642968840585,0.04023797,2408.7,2407.3,0.13819997]
[1642968840797,0.0374636,2408.7,2407.3,0.13819997]
[1642968840988,2.55297772,2408.7,2407.2,1.2201]
[1642968841188,2.55297772,2408.7,2407.4,1.15604059]
[1642968841189,1.90561921,2408.6,2407.4,1.15604059]
[1642968841391,3.13926615,2408.6,2407.4,1.15604059]
[1642968841587,1.801,2408.6,2407.4,1.15604059]
[1642968842388,1.0395725,2408.3,2407.4,1.15604059]
[1642968843295,3.2401373,2408.6,2407.4,1.15604059]
[1642968843491,2.67276532,2408.5,2407.4,1.15604059]
[1642968843691,0.501,2408.5,2407.4,1.15604059]
[1642968844093,1.501,2408.5,2407.4,1.15604059]
[1642968844535,2.57128419,2408.4,2407.1,0.03819997]
[1642968844737,2.57128419,2408.4,2406.6,2.5685]
[1642968844738,1.07473771,2408.1,2406.6,2.3602]
[1642968844934,3.66555776,2408.0,2406.2,3.8309]
[1642968845137,0.03967477,2407.8,2406.1,0.01218722]
[1642968845338,3.59272903,2407.8,2406.1,0.01218722]
[1642968845536,0.039426,2407.6,2406.6,1.15881611]
[1642968845736,0.501,2407.5,2406.6,1.15881611]
[1642968845940,4.1598265,2407.9,2407.1,0.72804879]
[1642968845941,0.501,2407.9,2407.1,0.72804879]
[1642968846138,0.501,2408.5,2407.1,1.63494879]
[1642968846735,0.501,2408.5,2408.1,1.17251923]
[1642968846935,0.501,2408.5,2408.1,0.79189943]
[1642968847138,0.04,2408.8,2408.1,0.79189943]
[1642968847334,0.035,2408.8,2408.1,0.79189943]
[1642968847932,0.035,2408.8,2408.0,1.34401548]
[1642968848179,0.035,2408.8,2407.9,1.0]
[1642968848381,0.035,2408.8,2407.8,0.17639994]
[1642968849080,0.035,2408.8,2408.0,1.13633429]
[1642968850181,3.79398733,2408.9,2408.0,1.13633429]
[1642968850584,3.79398733,2408.9,2407.8,0.17639994]
[1642968850585,0.03977992,2408.8,2407.8,0.17639994]
[1642968850786,3.79398733,2408.9,2407.8,0.17639994]
[1642968851836,0.501,2408.8,2407.8,0.17639994]
[1642968852032,2.83606074,2408.7,2407.8,0.17639994]
[1642968852230,3.33706074,2408.7,2407.8,0.17639994]
[1642968853031,0.501,2408.7,2407.8,0.17639994]
[1642968853333,0.501,2408.7,2408.0,1.24051401]
[1642968854134,0.501,2408.7,2407.8,0.17639994]
[1642968855236,0.501,2408.7,2408.0,1.17330457]
[1642968855445,0.04,2408.9,2408.3,0.73171685]
[1642968855685,0.04,2408.9,2408.3,1.69631685]
[1642968856288,0.04,2408.9,2408.6,1.09738809]
[1642968859630,0.04,2408.9,2408.6,1.88708809]
[1642968860140,0.50269938,2410.0,2408.6,1.88708809]
[1642968860141,0.5,2410.0,2409.6,0.8120364]
[1642968860337,0.5,2410.0,2409.6,1.8701364]
[1642968860541,0.5,2410.0,2409.7,1.22028368]
[1642968860934,0.0001,2409.9,2409.7,1.22028368]
[1642968861136,0.04,2410.1,2409.8,6.4]
[1642968861335,0.047,2410.7,2409.9,5.7]
[1642968861549,0.047,2410.7,2410.0,1.0]
[1642968861738,0.047,2410.7,2409.9,5.73819997]
[1642968861937,8.397,2411.1,2409.9,0.03819997]
[1642968862139,0.04,2411.1,2409.9,0.03819997]
[1642968863685,0.03334746,2411.0,2409.9,0.02625136]
[1642968864094,0.01246182,2410.8,2409.4,0.1658]
[1642968864288,0.465,2410.4,2409.4,0.1658]
[1642968864485,0.04364766,2410.3,2409.4,0.1658]
[1642968864686,0.01246182,2410.8,2408.6,5.8699255]
[1642968864687,0.03334746,2411.0,2409.2,0.2083]
[1642968864886,0.03334746,2411.0,2409.5,0.01205843]
[1642968865089,0.03334746,2411.0,2409.6,0.1658]
[1642968865286,0.03334746,2411.0,2409.5,0.17785843]
[1642968865589,0.03334746,2411.0,2410.2,1.46965564]
[1642968865786,0.03334746,2411.0,2409.5,0.01205843]
[1642968866385,7.43,2410.7,2409.5,0.01205843]
[1642968866591,7.43,2410.7,2409.5,0.86128084]
[1642968867231,7.43,2410.7,2409.5,1.39583219]
[1642968867733,7.43,2410.7,2409.5,2.39583219]
[1642968867934,7.43,2410.7,2410.5,1.54132998]
[1642968868137,7.43,2410.7,2410.5,2.35712998]
[1642968868337,0.03334746,2411.0,2410.5,2.35712998]
[1642968868737,0.03334746,2411.0,2410.5,3.35712998]
[1642968868935,0.03311902,2410.6,2410.5,3.35712998]
[1642968869145,0.03311902,2410.6,2410.5,3.3341374]
[1642968869336,0.04,2411.1,2410.5,3.81231139]
[1642968869542,0.04,2411.3,2410.6,8.0241]
[1642968869737,0.04,2411.3,2410.6,8.5251]
[1642968870045,8.36,2412.7,2411.9,0.80317837]
[1642968870252,8.36,2412.7,2412.0,4.9]
[1642968870450,8.66162782,2412.9,2412.1,0.22089588]
[1642968870690,0.12608889,2413.5,2412.7,0.01220956]
[1642968870896,0.12608889,2413.5,2412.8,0.1656]
[1642968871100,8.66162782,2414.1,2412.9,0.2083]
[1642968871293,8.66162782,2414.1,2413.0,2.03637587]
[1642968871493,8.66162782,2414.8,2413.2,0.01264435]
[1642968871705,28.54929426,2415.6,2413.4,7.05]
[1642968871706,27.37512669,2415.6,2413.4,7.05]
[1642968871891,27.37512669,2415.6,2413.8,0.01250738]
[1642968872091,8.89e-05,2414.3,2413.9,0.23455135]
[1642968872792,8.89e-05,2414.3,2413.9,0.02625135]
[1642968873091,0.06203751,2415.0,2414.1,0.80726918]
[1642968873295,27.22512669,2415.6,2415.2,1.13685302]
[1642968873598,0.00266774,2415.5,2415.2,0.9722]
[1642968874349,0.00266774,2415.5,2415.2,2.07965534]
[1642968874546,0.08225498,2417.1,2415.4,0.2083]
[1642968874754,0.08225498,2417.1,2416.6,1.17108032]
[1642968874951,0.08225498,2417.1,2416.6,2.16378032]
[1642968875149,0.08225498,2417.1,2416.6,0.9927]
[1642968875349,2.07089,2418.4,2416.7,7.65]
[1642968875554,2.09183668,2418.7,2417.6,0.80745534]
[1642968875555,0.74164563,2418.1,2417.6,0.80745534]
[1642968875757,0.02085668,2418.7,2417.7,0.2083]
[1642968875954,1.0614389,2420.1,2417.9,0.01250155]
[1642968876152,1.0614389,2420.1,2418.2,7.65]
[1642968876352,0.04811,2420.0,2419.3,0.6752]
[1642968876552,1.0614389,2420.1,2419.3,1.56352832]
[1642968876753,0.58665742,2420.1,2419.4,0.4653]
[1642968876964,1.0342256,2421.1,2419.5,7.8568]
[1642968877150,0.06023943,2421.7,2419.6,2.7045255]
[1642968877357,0.06023943,2421.7,2419.3,1.56352832]
[1642968877358,0.14888932,2421.6,2419.3,1.56352832]
[1642968877552,1.22437666,2420.7,2419.7,0.01298893]
[1642968877757,0.73362843,2420.6,2419.7,0.01298893]
[1642968877954,0.73362843,2420.6,2419.3,0.81759572]
[1642968877955,0.82048024,2420.6,2419.3,0.81759572]
[1642968878205,1.03413,2421.5,2419.6,7.65]
[1642968878411,2.06803,2422.6,2420.3,0.01293392]
[1642968878607,3.1022767,2422.2,2420.2,0.4947]
[1642968878805,0.75032345,2422.1,2419.0,0.17775217]
[1642968879004,6.267,2421.2,2419.0,0.01265217]
[1642968879202,6.267,2421.2,2418.6,0.93071]
[1642968879203,1.03419,2420.9,2418.6,0.93071]
[1642968879407,2.2393255,2420.8,2418.5,0.01248582]
[1642968879608,2.32617731,2420.8,2418.5,0.01248582]
[1642968879801,0.68685181,2420.8,2418.5,0.01248582]
[1642968880004,0.16514245,2419.0,2418.2,0.1653]
[1642968880205,0.16514245,2419.0,2417.9,0.1653]
[1642968880405,0.16514245,2419.0,2418.5,0.10009367]
[1642968880605,2.25224583,2420.3,2418.6,0.2068]
[1642968880806,0.01292033,2420.3,2417.9,0.1653]
[1642968881004,0.01292033,2420.3,2417.7,0.48319994]
[1642968881005,0.501,2420.2,2417.7,0.27639994]
[1642968881206,2.2393255,2420.5,2418.4,0.01257094]
[1642968881405,1.4336467,2420.0,2419.2,1.42190225]
[1642968881605,2.06946,2419.8,2417.9,0.10009367]
[1642968881829,3.0403255,2419.7,2418.0,0.11225665]
[1642968882031,1.0,2419.0,2418.0,0.01216298]
[1642968882243,0.501,2418.9,2418.0,0.01216298]
[1642968882435,0.501,2418.9,2416.9,0.01201398]
[1642968882436,0.21735351,2418.9,2416.9,0.01201398]
[1642968882635,0.11845086,2418.5,2418.2,0.75884688]
[1642968882836,0.01275172,2419.7,2418.2,0.75884688]
[1642968883035,0.46375172,2420.0,2418.7,0.10009367]
[1642968883236,0.46375172,2420.0,2418.2,1.67425321]
[1642968883237,0.501,2420.0,2418.6,0.2694]
[1642968883436,1.53553,2420.0,2418.1,0.01220095]
[1642968883635,0.00273611,2418.9,2418.1,0.01220095]
[1642968884140,1.20738987,2418.8,2417.1,2.2393255]
[1642968884343,2.2393255,2418.7,2416.9,0.28931482]
[1642968884536,1.03542,2418.3,2416.9,0.33940849]
[1642968884741,1.03542,2418.3,2417.0,1.14120415]
[1642968884742,0.501,2418.2,2417.0,1.14120415]
[1642968885137,3.44671537,2418.8,2417.0,1.34795415]
[1642968885338,0.00273611,2418.9,2418.0,0.05009367]
[1642968885590,0.00273611,2418.9,2418.7,0.05009367]
[1642968885792,0.501,2420.6,2418.8,8.00869888]
[1642968885994,3.44334063,2421.3,2420.5,0.05009367]
[1642968886192,3.44334063,2421.3,2421.2,0.77904487]
[1642968886391,1.07391,2422.2,2421.2,1.56584487]
[1642968886392,0.04,2422.2,2421.2,1.56584487]
[1642968886592,1.08482021,2422.2,2421.8,0.05009367]
[1642968886893,0.01222719,2422.8,2422.1,0.05009367]
[1642968887196,0.04,2424.0,2421.9,1.21383682]
[1642968887197,0.50322719,2424.0,2422.6,0.8387]
[1642968887396,0.50322719,2424.0,2422.6,1.3983]
[1642968887397,0.501,2423.7,2422.6,1.3983]
[1642968887591,0.63517301,2422.4,2421.3,2.37752547]
[1642968887792,0.63517301,2422.4,2421.4,7.65]
[1642968887793,7.301e-05,2422.4,2421.4,7.65]
[1642968887988,7.301e-05,2422.4,2421.4,9.33555]
[1642968888198,7.301e-05,2422.4,2421.4,9.1113]
[1642968888396,1.00216948,2422.6,2421.7,0.2033]
[1642968888594,1.11559489,2423.0,2421.5,9.8893255]
[1642968888796,1.11559489,2423.0,2421.8,0.05009367]
[1642968889013,1.11559489,2423.0,2421.5,7.65]
[1642968889195,1.06559489,2423.0,2422.0,0.01240523]
[1642968889433,1.06559489,2423.0,2421.3,0.13819997]
[1642968889635,1.47526525,2421.8,2421.3,0.13819997]
[1642968889833,1.47526525,2421.8,2420.5,0.1651]
[1642968889834,2.4457855,2421.7,2420.5,0.1651]
[1642968890037,0.06145743,2421.1,2419.0,0.01230068]
[1642968890235,0.20646,2421.0,2418.7,3.6652]
[1642968890440,0.06145743,2421.1,2418.0,3.4419304]
[1642968890441,0.20646,2420.9,2418.6,0.0122816]
[1642968890635,0.05271228,2421.4,2420.5,0.05009367]
[1642968890636,0.04,2421.4,2420.5,0.05009367]
[1642968890833,0.00270114,2421.0,2420.5,0.20686367]
[1642968891036,0.00270114,2421.0,2420.6,0.1652]
[1642968891236,1.23263114,2422.6,2420.9,0.01262198]
[1642968891440,12.6794055,2422.5,2420.9,0.83276466]
[1642968891637,12.6794055,2422.5,2420.1,0.13819997]
[1642968891638,0.20646,2422.4,2420.1,0.13819997]
[1642968891940,7.30103,2422.2,2419.4,0.1651]
[1642968892135,1.0342452,2421.1,2419.4,0.01249915]
[1642968892336,1.03423,2420.8,2419.4,0.01249915]
[1642968892540,0.70746,2420.7,2418.7,0.01227214]
[1642968892839,0.012291,2421.4,2418.7,0.01227214]
[1642968892840,0.90159368,2420.5,2419.6,0.01234057]
[1642968893093,2.30037827,2421.9,2419.9,0.01276645]
[1642968893094,0.20646,2421.9,2419.9,0.01276645]
[1642968893295,0.34465997,2421.8,2419.9,0.01276645]
[1642968893492,0.84565997,2421.8,2419.9,0.01276645]
[1642968893889,1.35127568,2420.1,2419.9,0.01276645]
[1642968894091,1.35127568,2420.1,2419.2,2.2393255]
[1642968894092,1.35127568,2420.1,2419.2,0.01256544]
[1642968894890,1.35127568,2420.1,2418.8,0.13819997]
[1642968895094,3.103,2421.2,2418.8,0.13819997]
[1642968895095,0.20646,2420.7,2419.7,0.99135313]
[1642968895295,5.35284,2422.6,2419.9,7.66258677]
[1642968895296,0.20646,2422.3,2419.9,7.66258677]
[1642968895498,0.20646,2422.3,2420.5,0.01204026]
[1642968895700,0.20646,2421.9,2420.5,0.86744026]
[1642968895897,2.37752547,2421.8,2420.5,0.8554]
[1642968896096,1.17884838,2420.9,2420.3,1.40923508]
[1642968896294,1.17884838,2420.9,2419.9,0.01293775]
[1642968896494,1.38530838,2420.9,2419.9,0.01293775]
[1642968896694,0.90573154,2420.8,2419.6,0.81191371]
[1642968896942,0.90573154,2420.8,2419.3,0.20677]
[1642968896943,0.66755936,2420.0,2419.3,0.01224926]
[1642968897349,0.66755936,2420.0,2419.1,0.1652]
[1642968897350,1.43425931,2419.4,2419.1,0.1652]
[1642968897751,1.43425931,2419.4,2419.2,0.001]
[1642968897944,4.64279379,2419.3,2419.2,0.001]
[1642968898147,6.15,2419.2,2418.0,1.0]
[1642968898546,0.70746,2419.1,2418.0,1.0]
[1642968898749,0.03587595,2419.0,2418.0,1.0]
[1642968898954,6.3438,2419.2,2418.0,1.0]
[1642968898955,0.1938,2419.2,2418.1,2.4460955]
[1642968899150,0.90119916,2419.0,2418.9,1.15346653]
[1642968899355,0.90119916,2419.0,2418.5,0.01285076]
[1642968899549,0.90119916,2419.0,2418.0,1.0]
[1642968899550,0.85119916,2419.0,2418.0,1.0]
[1642968899951,0.20646,2418.9,2418.0,1.0]
[1642968900159,0.63919997,2418.8,2418.0,1.0]
[1642968900357,0.04411672,2418.5,2417.2,0.01273943]
[1642968900587,0.04411672,2418.5,2416.1,0.20677]
[1642968900588,0.03977509,2418.1,2416.5,0.01219125]
[1642968900788,0.67216649,2417.7,2416.6,7.65]
[1642968900992,2.37752547,2418.8,2417.6,0.01219063]
[1642968901188,2.37752547,2418.8,2417.8,0.01297183]
[1642968901189,0.13819997,2418.8,2417.8,0.01297183]
[1642968901393,3.6399,2420.7,2417.9,0.22802245]
[1642968901394,0.20646,2419.6,2417.9,0.22802245]
[1642968901592,2.5707,2419.5,2417.5,0.17364087]
[1642968901790,6.768,2419.5,2417.3,0.01245427]
[1642968901988,6.768,2419.5,2417.4,0.20677]
[1642968901989,1.03526,2418.9,2417.4,0.20677]
[1642968902189,0.89926778,2418.7,2418.4,0.82283585]
[1642968902386,3.60565,2419.9,2418.2,0.9935]
[1642968902387,0.20646,2419.7,2418.2,0.9935]
[1642968902592,6.74473,2420.7,2418.3,0.20677]
[1642968902593,0.20646,2420.2,2418.3,0.20677]
[1642968902788,3.209866,2420.5,2418.4,0.0129519]
[1642968902998,0.01268226,2420.8,2419.5,0.01252551]